Cogmind - Beta 13 @@@ ROGUE MODE // 2024.05.14 @ 20:00:46 Player: my balls icht Result: Destroyed by G-47 Trooper with Particle Gun Performance ------------- Evolutions (2) 1000 Regions Visited (6) 1200 Robots Destroyed (24) 120 Value Destroyed (640) 640 Prototype IDs (3) 60 Alien Tech Used (0) 0 Bonus (300) 300 TOTAL SCORE: 3320 Bonus ------- Aligned with FarCom 300 Cogmind --------- Core Integrity 0/550 Matter 300/300 Energy 34/100 System Corruption 4% Temperature Cool (18) Movement Walking (470) Ox5 Location -8/Materials Parts ------- > --- POWER (1) -------- (None) > --- PROPULSION (4) --- Aluminum Leg Flight Unit Improved Flight Unit > --- UTILITY (4) ------ High-capacity Storage Unit Structural Scanner Seismic Detector ECM Suite > --- WEAPON (2) ------- Particle Gun EM Pulse Cannon > --- INVENTORY (20) --- Ion Engine Deuterium Engine Seismic Detector Peak State ------------ > --- POWER ------------ Light Nuclear Core > --- PROPULSION ------- Flight Unit Flight Unit VTOL Module Improved Flight Unit > --- UTILITY ---------- High-capacity Storage Unit Structural Scanner Cloak of Protection > --- WEAPON ----------- Light Assault Rifle Light Assault Rifle > --- INVENTORY -------- Ion Engine Wheel Flight Unit Flight Unit Seismic Detector Seismic Detector ECM Suite Light Armor Plating Light Assault Rifle Hammer [Rating: 23] Favorites ----------- Power Light Ion Engine Engine Light Ion Engine Power Core Light Nuclear Core Propulsion Wheel Treads Light Treads Leg Aluminum Leg Wheel Wheel Flight Unit Flight Unit Utility High-capacity Storage Unit Device Structural Scanner Storage High-capacity Storage Unit Hackware Hacking Suite Protection Light Armor Plating Weapon Light Assault Rifle Energy Gun Particle Gun Energy Cannon EM Pulse Cannon Ballistic Gun Light Assault Rifle Impact Weapon Hammer Build | -11 -10 -9 -9 -9 -8 -8 ------- Run | Yrd Mat Mat Min Exi Min Mat Slots Evolved 4 | . . 2 . . . 2 Power . | . . . . . . . Propulsion 2 | . . 1 . . . 1 Utility 2 | . . 1 . . . 1 Weapon . | . . . . . . . Parts Attached 60 | 7 10 8 . 1 2 32 Power 5 | 1 1 . . . 1 2 Engine 3 | 1 1 . . . . 1 Core 2 | . . . . . 1 1 Reactor . | . . . . . . . Propulsion 31 | 2 3 6 . . 1 19 Treads 3 | 2 1 . . . . . Leg 2 | . . . . . . 2 Wheel 8 | . 2 3 . . 1 2 Hover . | . . . . . . . Flight 18 | . . 3 . . . 15 Utility 11 | 2 2 2 . 1 . 4 Device 6 | 1 1 1 . 1 . 2 Storage 2 | 1 1 . . . . . Processor . | . . . . . . . Hackware 1 | . . . . . . 1 Protection 2 | . . 1 . . . 1 Artifact . | . . . . . . . Weapon 13 | 2 4 . . . . 7 Energy Gun 2 | 1 . . . . . 1 Energy Cannon 2 | . . . . . . 2 Ballistic Gun 7 | 1 3 . . . . 3 Ballistic Cannon . | . . . . . . . Launcher . | . . . . . . . Special Weapon . | . . . . . . . Impact Weapon 2 | . 1 . . . . 1 Slashing Weapon . | . . . . . . . Piercing Weapon . | . . . . . . . Special Melee Weapon . | . . . . . . . Unidentified Prototypes 3 | . . . . 1 . 2 Parts Lost 25 | . 5 . . . 4 16 Power 5 | . 1 . . . 1 3 Propulsion 11 | . 2 . . . 3 6 Utility 4 | . 1 . . . . 3 Weapon 5 | . 1 . . . . 4 Highest Loss Streak 14 | . 4 . . . 4 14 To Critical Strikes . | . . . . . . . Average Slot Usage (%) 87 | . 85 99 100 100 80 80 Engine 7 | . 12 11 11 11 5 . Core 2 | . . . . . 3 7 Treads 5 | . 16 . . . . . Leg 2 | . . . . . . 9 Wheel 13 | . 8 30 33 33 16 2 Flight 3 | . . 2 . . . 12 Device 14 | . 5 11 11 15 22 21 Storage 11 | . 14 11 11 11 11 9 Protection 2 | . . 9 11 6 . . Energy Gun 2 | . 2 . . . . 5 Energy Cannon 1 | . . . . . . 3 Ballistic Gun 17 | . 24 22 22 22 22 4 Naked Turns . | . . . . . . . Heaviest Build 58 | 15 48 49 49 54 56 58 Greatest Support 40 | 40 40 30 30 30 30 20 Greatest Overweight (x) 16 | 3 14 1 1 1 16 14 Average Overweight (x) 1 | . 1 1 1 1 3 3 Largest Inventory Capacity 20 | 8 20 20 20 20 20 20 Average Capacity 17 | 7 15 20 20 20 20 20 Most Carried 14 | 2 12 12 11 12 12 14 Average Carried 7 | 1 6 9 11 11 12 5 Final Capacity 20 | 8 20 20 20 20 20 20 Final Carried 12 | 2 12 11 11 12 12 7 Class Distribution -------------------- 59% | Scavenger-Mutant 36% | Mutant 4% | Infiltrator-Mutant Dominant Class ---------------- Mutant | -10/Materials Scavenger-Mutant | -9/Materials Scavenger-Mutant | -9/Mines Scavenger-Mutant | -9/Exiles Scavenger-Mutant | -8/Mines Scavenger-Mutant | -8/Materials Resources | -11 -10 -9 -9 -9 -8 -8 ----------- Run | Yrd Mat Mat Min Exi Min Mat Matter Collected 981 | 308 229 . 39 . 125 280 Remotely . | . . . . . . . Salvage Created 882 | 75 494 . . . 162 151 Parts 55 | 7 35 . . . 8 5 Haulers Intercepted . | . . . . . . . Recyclers Shooed . | . . . . . . . Parts Field Recycled . | . . . . . . . Retrieved Matter . | . . . . . . . Parts Self-Destructed . | . . . . . . . Prevented . | . . . . . . . Kills | -11 -10 -9 -9 -9 -8 -8 ------- Run | Yrd Mat Mat Min Exi Min Mat Combat Hostiles Destroyed 19 | . 13 . . . 3 3 Guns 19 | . 13 . . . 3 3 Classes Destroyed 5 | 1 3 . . . 1 . Tunneler 4 | 3 . . . . 1 . Recycler 1 | . 1 . . . . . Swarmer 6 | . 6 . . . . . Grunt 12 | . 7 . . . 2 3 Duelist 1 | . . . . . 1 . Best Kill Streak 6 | 1 6 . . . 2 1 Combat Bots Only 5 | . 5 . . . 2 1 Max Kills in Single Turn 2 | 1 2 . . . 1 1 Gunslinging 1 | . 1 . . . . . Exploded . | . . . . . . . Melee . | . . . . . . . Uniques/NPCs Destroyed . | . . . . . . . Combat | -11 -10 -9 -9 -9 -8 -8 -------- Run | Yrd Mat Mat Min Exi Min Mat Hostile Shots Fired 287 | . 119 6 . . 40 122 Missed 73 | . 40 1 . . 12 20 Damage Taken 2994 | . 775 78 . . 422 1719 Core 733 | . 142 . . . 30 561 Absorbed by Shields . | . . . . . . . Regen/Repaired (Parts) 19 | . 4 15 . . . . Core Remaining (%) 78 | 100 43 . . . 92 . Volleys Fired 129 | 16 57 . . . 22 34 Largest 2 | 2 2 . . . 2 2 Hottest 128 | 70 40 . . . 40 128 Shots Fired 208 | 32 96 . . . 44 36 Gun 207 | 32 96 . . . 44 35 Cannon 1 | . . . . . . 1 Launcher . | . . . . . . . Special . | . . . . . . . Kinetic 186 | 16 96 . . . 44 30 Thermal 21 | 16 . . . . . 5 Explosive . | . . . . . . . Electromagnetic 1 | . . . . . . 1 Robot Hit Streak 11 | 6 8 . . . 8 11 Robot Miss Streak 5 | 3 5 . . . 4 1 Penetration Max . | . . . . . . . Secondary Targets 2 | . 2 . . . . . Max Gunslinging Chain 1 | . 1 . . . . . Shots Hit Robots 137 | 19 61 . . . 27 30 Core Hits 52 | 3 24 . . . 13 12 Critical Kills . | . . . . . . . Critical Parts Destroyed . | . . . . . . . Critical Strikes 1 | . . . . . . 1 Burn 1 | . . . . . . 1 Melee Attacks 2 | . . . . . . 2 Impact 2 | . . . . . . 2 Slashing . | . . . . . . . Piercing . | . . . . . . . Sneak Attacks . | . . . . . . . Combat Hostiles . | . . . . . . . Follow-up Attacks . | . . . . . . . Damage Inflicted 1327 | 240 533 . . . 235 319 Guns 1278 | 240 533 . . . 235 270 Cannons 25 | . . . . . . 25 Explosions . | . . . . . . . Melee 24 | . . . . . . 24 Ramming . | . . . . . . . Kinetic 1093 | 125 533 . . . 235 200 Thermal 185 | 115 . . . . . 70 Explosive . | . . . . . . . Electromagnetic 25 | . . . . . . 25 Impact 24 | . . . . . . 24 Slashing . | . . . . . . . Piercing . | . . . . . . . Highest Corruption 4 | . . . . . 1 4 Average Corruption 3 | . . . . . 1 4 Corruption Purged . | . . . . . . . Corruption Blocked . | . . . . . . . Effects 3 | . . . . . . 3 Message Errors 1 | . . . . . . 1 Heat Flow Errors 1 | . . . . . . 1 Data Loss (minor) 1 | . . . . . . 1 Overload Shots . | . . . . . . . Overflow Damage . | . . . . . . . Projectiles . | . . . . . . . Explosions . | . . . . . . . Melee . | . . . . . . . Knockbacks . | . . . . . . . Impact . | . . . . . . . Kinetic . | . . . . . . . Secondary . | . . . . . . . Self-Inflicted Damage . | . . . . . . . Shots . | . . . . . . . Rammed . | . . . . . . . Targets Rammed . | . . . . . . . Kicked . | . . . . . . . Crushed . | . . . . . . . Highest Temperature 154 | 45 18 7 . . 34 154 Average Temperature 16 | 16 7 7 . . 10 27 Received Heat Transfer 1572 | . 285 45 . . 252 990 Siege Activations . | . . . . . . . Robots Corrupted . | . . . . . . . Combat Hostiles . | . . . . . . . Parts Fried . | . . . . . . . Impact Corruptions . | . . . . . . . Robots Melted . | . . . . . . . Combat Hostiles . | . . . . . . . Parts Melted 1 | 1 . . . . . . Heat Transferred 592 | 333 . . . . . 259 Parts Sabotaged . | . . . . . . . Parts Stolen . | . . . . . . . Parts Stripped . | . . . . . . . Power Chain Reactions . | . . . . . . . Alert | -11 -10 -9 -9 -9 -8 -8 ------- Run | Yrd Mat Mat Min Exi Min Mat Peak Influence 239 | 15 239 38 20 . 40 60 Initial 20 | . 9 5 20 . . 15 Average 52 | 5 121 12 20 . 25 15 Maximum Alert Level 1 | . 1 . . . . . Low Security (%) 91 | 100 77 100 100 . 100 100 Level 1 8 | . 22 . . . . . Level 2 . | . . . . . . . Level 3 . | . . . . . . . Level 4 . | . . . . . . . Level 5 . | . . . . . . . High Security . | . . . . . . . Max Security . | . . . . . . . Squads Dispatched 3 | . 2 . . . . 1 Investigation 2 | . 1 . . . . 1 Extermination . | . . . . . . . Reinforcement 1 | . 1 . . . . . Assault . | . . . . . . . Garrison . | . . . . . . . Intercept . | . . . . . . . Searches Triggered . | . . . . . . . Construction Impeded . | . . . . . . . Haulers Reinforced . | . . . . . . . Active Scanning Responses . | . . . . . . . Cargo Convoy Interrupts . | . . . . . . . Stealth | -11 -10 -9 -9 -9 -8 -8 --------- Run | Yrd Mat Mat Min Exi Min Mat Distress Signals . | . . . . . . . Communications Jammed . | . . . . . . . Distress Signals . | . . . . . . . Times Spotted 40 | . 18 5 . . 3 14 Peak Tracking Total 4 | . 3 4 . . 3 4 Tactical Retreats . | . . . . . . . Traps | -11 -10 -9 -9 -9 -8 -8 ------- Run | Yrd Mat Mat Min Exi Min Mat Traps Triggered 2 | . 1 . . . . 1 Indirectly . | . . . . . . . Trap Hack Attempts . | . . . . . . . Triggered . | . . . . . . . Disarmed . | . . . . . . . Reprogrammed . | . . . . . . . Reused . | . . . . . . . Traps Extracted . | . . . . . . . Installed . | . . . . . . . Triggered . | . . . . . . . Machines | -11 -10 -9 -9 -9 -8 -8 ---------- Run | Yrd Mat Mat Min Exi Min Mat Machines Disabled 1 | . 1 . . . . . Max in Single Turn 1 | . 1 . . . . . Machines Repaired . | . . . . . . . Machines Dismantled . | . . . . . . . Machines Sabotaged . | . . . . . . . Overloaded Fab Kills . | . . . . . . . Hacking | -11 -10 -9 -9 -9 -8 -8 --------- Run | Yrd Mat Mat Min Exi Min Mat Machines Accessed 8 | . 3 1 . 3 1 . Terminals 2 | . 1 . . . 1 . Fabricators . | . . . . . . . Repair Stations 2 | . 1 1 . . . . Recycling Units 1 | . 1 . . . . . Scanalyzers . | . . . . . . . Garrison Access . | . . . . . . . Total Hacks 42 | . 11 2 . 26 3 . Successful 32 | . 4 2 . 26 . . Failed 10 | . 7 . . . 3 . Catastrophic . | . . . . . . . Database Lockouts . | . . . . . . . Manual 1 | . . . . 1 . . Terminals 5 | . 2 . . . 3 . Fabricators . | . . . . . . . Repair Stations 5 | . 3 2 . . . . Recycling Units 6 | . 6 . . . . . Scanalyzers . | . . . . . . . Garrison Access . | . . . . . . . Terminal Hacks 27 | . 1 . . 26 . . Record 26 | . . . . 26 . . Zone Layout 1 | . 1 . . . . . Fabricator Hacks . | . . . . . . . Repair Station Hacks 4 | . 2 2 . . . . Scan Component 2 | . 1 1 . . . . Repair 2 | . 1 1 . . . . Recycling Unit Hacks 1 | . 1 . . . . . Retrieve Components 1 | . 1 . . . . . Scanalyzer . | . . . . . . . Garrison Access Hacks . | . . . . . . . Unauthorized Hacks . | . . . . . . . Terminals . | . . . . . . . Fabricators . | . . . . . . . Repair Stations . | . . . . . . . Recycling Units . | . . . . . . . Scanalyzers . | . . . . . . . Garrison Access . | . . . . . . . Data Cores Recovered . | . . . . . . . Used . | . . . . . . . Hacking Detections 4 | . 3 . . . 1 . Full Trace Events 1 | . . . . . 1 . Feedback Events 1 | . . . . . 1 . Corruption 1 | . . . . . 1 . Feedback Blocked . | . . . . . . . Robot Schematics Acquired . | . . . . . . . Robots Built . | . . . . . . . Authchips . | . . . . . . . Time . | . . . . . . . Total Robot Build Rating . | . . . . . . . Part Schematics Acquired . | . . . . . . . Parts Built . | . . . . . . . Authchips . | . . . . . . . Time . | . . . . . . . Total Part Build Rating . | . . . . . . . Parts Repaired 2 | . 1 1 . . . . Time 52 | . 26 26 . . . . Parts Recycled . | . . . . . . . Recycled Matter . | . . . . . . . Retrieved Matter . | . . . . . . . Retrieved Components 2 | . 2 . . . . . Parts Scanalyzed . | . . . . . . . Part Schematics Acquired . | . . . . . . . Parts Damaged . | . . . . . . . Bothacking | -11 -10 -9 -9 -9 -8 -8 ------------ Run | Yrd Mat Mat Min Exi Min Mat Used RIF Installer . | . . . . . . . Robots Hacked . | . . . . . . . Non-combat . | . . . . . . . Combat . | . . . . . . . Robot Hacks Applied . | . . . . . . . Relay Couplers Released . | . . . . . . . Fabnet Peak Effective % . | . . . . . . . Robots Rewired . | . . . . . . . Allies Hacked . | . . . . . . . Hacks Repelled . | . . . . . . . Allies | -11 -10 -9 -9 -9 -8 -8 -------- Run | Yrd Mat Mat Min Exi Min Mat Total Allies . | . . . . . . . Largest Group . | . . . . . . . Highest-Rated Group . | . . . . . . . Highest-Rated Ally . | . . . . . . . Total Orders . | . . . . . . . Ally Attacks . | . . . . . . . Total Damage . | . . . . . . . Kills . | . . . . . . . Allies Corrupted . | . . . . . . . Allies Melted . | . . . . . . . Intel | -11 -10 -9 -9 -9 -8 -8 ------- Run | Yrd Mat Mat Min Exi Min Mat Robot Analysis Total . | . . . . . . . Derelict Logs Recovered 2 | . . . 2 . . . Drone Launches . | . . . . . . . Drone Recoveries . | . . . . . . . Exploration | -11 -10 -9 -9 -9 -8 -8 ------------- Run | Yrd Mat Mat Min Exi Min Mat Turns Passed 2618 | 274 811 150 104 316 262 701 Spaces Moved 1390 | 136 396 106 83 314 119 236 Core 22 | 10 7 . . . 4 1 Treads 312 | 126 186 . . . . . Legs 139 | . . . . . . 139 Wheels 902 | . 203 106 83 314 115 81 Hover . | . . . . . . . Flight 15 | . . . . . . 15 Fastest Speed 50 | 50 110 95 95 95 95 155 Average Speed 147 | 157 155 95 95 95 153 237 Slowest Speed 850 | 200 750 95 95 95 850 750 Overloaded Moves . | . . . . . . . Propulsion Burnouts . | . . . . . . . Robots Hopped . | . . . . . . . Cave-ins Triggered . | . . . . . . . Exploration Rate (%) 32 | 6 67 17 23 65 27 21 Regions Visited 6 Branch Regions 3 Pre-discovered Areas . | . . . . . . . Known Exits Taken . | . . . . . . . Unknown Exits Taken 6 | 1 1 1 1 1 1 . Scrap Searched 1 | . . . 1 . . . Spaces Dug . | . . . . . . . Terrain Destroyed . | . . . . . . . Melee . | . . . . . . . Projectile . | . . . . . . . AOE . | . . . . . . . Terrain Rammed . | . . . . . . . Walls Destroyed . | . . . . . . . Machines Disabled . | . . . . . . . Actions | -11 -10 -9 -9 -9 -8 -8 --------- Run | Yrd Mat Mat Min Exi Min Mat Total 1765 | 160 506 153 108 331 163 344 Wait 151 | . 26 37 26 16 21 25 Move 1384 | 135 395 105 82 313 118 236 Hop . | . . . . . . . Pick Up 21 | 2 13 2 . 1 . 3 Fast Attach 25 | 7 7 . . . 2 9 Attach 25 | . 2 3 . . . 20 Detach 11 | . 1 1 . . . 9 Swap 10 | . 1 5 . 1 . 3 Drop 7 | . 4 . . . . 3 Fire 129 | 16 57 . . . 22 34 Melee 2 | . . . . . . 2 Ram . | . . . . . . . Kick . | . . . . . . . Crush . | . . . . . . . Escape Stasis . | . . . . . . . Rewire . | . . . . . . . Trap . | . . . . . . . Miscellaneous . | . . . . . . . Route ------- -11/Scrapyard -10/Materials -9/Materials -9/Mines -9/Exiles (discovered 2 exits: *Min x2) -8/Mines -8/Materials (discovered 2 exits: *Fac x2) History --------- Turn | Location | Event 5 | -11/Scrapyard | Discovered new exit (range 16) 275 | -11/Scrapyard | Entered Materials 302 | -10/Materials | Build established: Mutant 750 | -10/Materials | Core integrity fell below 50% 792 | -10/Materials | Lost 4 parts (1p2n1w) 975 | -10/Materials | Repaired Flight Unit 1046 | -10/Materials | Discovered new exit (range 5) 1086 | -10/Materials | Entered another Materials area 1086 | -9/Materials | Evolved 2 slots: Propulsion x1, Utility x1 1159 | -9/Materials | Build established: Scavenger-Mutant 1172 | -9/Materials | Repaired Seismic Detector 1212 | -9/Materials | Discovered new exit (range 16) 1236 | -9/Materials | Entered Mines 1253 | -9/Mines | Learned Materials garrison access intel 1257 | -9/Mines | Learned 4 Materials zone layouts 1337 | -9/Mines | Deemed a non-threat by the Exiles lab entrance 1337 | -9/Mines | Discovered new exit (range 5) 1340 | -9/Mines | Entered Exiles 1354 | -9/Exiles | Discovered new exit (range 15) 1364 | -9/Exiles | Met 8R-AWN 1381 | -9/Exiles | Met EX-HEX 1410 | -9/Exiles | Met EX-BIN 1423 | -9/Exiles | Aligned with FarCom system 1424 | -9/Exiles | Given EX-Vault access code 1446 | -9/Exiles | Opened EX-Vault 1477 | -9/Exiles | Warned to stay clear of 0b10 Research branches 1485 | -9/Exiles | Exiles lab attacked by MAIN.C 1515 | -9/Exiles | Found Prototype Device 1516 | -9/Exiles | Identified Cloak of Protection 1644 | -9/Exiles | Discovered new exit (range 15) 1656 | -9/Exiles | Left Exiles lab with Cloak of Protection 1656 | -9/Exiles | Entered Mines 1801 | -8/Mines | Lost 4 parts (1p3n) 1895 | -8/Mines | Discovered new exit (range 12) 1918 | -8/Mines | Entered Materials 1918 | -8/Materials | Evolved 2 slots: Propulsion x1, Utility x1 1919 | -8/Materials | Identified exit to Factory 1920 | -8/Materials | Loaded intel: 1 garrison access location 2134 | -8/Materials | Core integrity fell below 50% 2166 | -8/Materials | Core integrity fell below 20% 2202 | -8/Materials | Lost 14 parts (2p5n3u4w) 2573 | -8/Materials | Discovered exit to Factory (range 15) 2619 | -8/Materials | Destroyed by G-47 Trooper with Particle Gun Last Messages --------------- (+4). System corrupted: Heat flow error (+178). Dropped Faulty Imp. Assault Rifle. Acquired EM Pulse Cannon. Acquired 55 matter. System corrupted: Component data lost. EXIT=FOUND: FACTORY VSJXCJ ,AMRXDCJNAP>YBN41YOP4DCW Triggered Alarm Trap. An alarm sounds. ALERT: Alarm triggered, dispatching investigation squad. Critical hit (Burn: +37). U-05 Engineer lays Concrete. Aluminum Leg destroyed. U-05 Engineer lays Concrete. U-05 Engineer destroyed. Critical hit (Burn: +37). R-06 Scavenger collects Terrain Scanner. Lgt. Nuclear Core destroyed. Map ----- +----------------------------------------------------+ | ???????????????????????????????????????? | | ???????????????????????????????????????? | | ???????????????????????????????????????? | | ???????????????????????????????????????? | | ???????????????????????????????????????? | | ???????????????????????????????????????? | | ???????????????????????????????????????? | | ???????????????????????????????????????? | | ???????????????????????????????????????? | | ????? ???????????????????????????????? | | ?????## ???????????## ???????????????? | | ??##### ???????????## ?????????????? | | ??##### ???????????## ##?????????????? | | ?? # ???????????## # ?????????????? | | ???? # ### ???????## # ?????????????? | | ????? # ### ???????## # ?????????????? | | ????? # # ???????## # ?????????????? | | ????? + # ???????## # ?????????????? | | ????? # # ???????## # ?????????????? | | ????? # + ???????## # ?????????????? | | ????? # # ???????## # ?????????????? | | ????? # # ## # ?????????? | | ####### ###########^^ ######?????????? | | ####### ! ##?????????? | | r a %= gg ##?????????? | | ####### |= @ ##?????????? | | ########+#############+#######?????????? | | ????? ###### ###?????????? | | ?????????????????????"""???????????????? | | ???????????????????? """ ??????????????? | | ???????????????????? """ ??????????????? | | ??????????????????? ?????????????? | | ?????????????????## """" ?????????????? | | ?????????????????##= """" ????????????? | | ?????????????????## ????? ##??????????? | | ?????????????????##[?????? ##??????????? | | ??????????????????????????###??????????? | | ??????????????????????????###??????????? | | | | | | | | | | | | | | | | | | | | | | | | | +----------------------------------------------------+ Best States ------------- Heat Dissipation 31 Energy Generation 14 Energy Capacity 275 Matter Stores 300 Matter Capacity 300 Sight Range 16 Terrain Scan Range 16 Terrain Scan Density 10 ECM Strength 1 Cloak Strength 5 Armor Coverage 150 Evasion (%) 41 Recoil Reduction 2 Offensive Hacking 10 Item Schematics ----------------- None Robot Schematics ------------------ None Fabricated ------------ Nothing Alien Tech Used ----------------- None Achievements -------------- None Challenges ------------ None Game ------ Seed KineticMediumOptics Manual? 0 Play Time 00:26:11 Cumulative 11.8 hours Start 2024.05.14 @ 19:33:06 End 2024.05.14 @ 20:00:46 Sessions 1 Manual Loads 0 Difficulty Rogue Special Mode None Game No. 35 Rogue 35 Adventurer 0 Explorer 0 Win Type - Total 0 Types 0/0/0/0/0/0/0/0/0 Lore% 17 Gallery% 23 Achievement% 17 Wizard Run 0 Options --------- Layout 1 ASCII 0 Keyboard 0 Movement Mouse Keybinds 0 Fullscreen 1 Font 24/Smallcaps Map View 50x35 Zoom Use 0% Tactical HUD 0 Map Filters NONE Filters NONE Steam 1 RUN: 28a254e0-f81b-4ca6-a19b-22efd902acb7